[Event "*** Titled Tuesday Blitz"]
[Site "Chess.com"]
[Date "2019.02.05"]
[Round "7"]
[White "sergeikim"]
[Black "HanSchut"]
[Result "1-0"]
[WhiteElo "2461"]
[BlackElo "2304"]
[TimeControl "180+2"]
[EndTime "14:34:30 PST"]
[Termination "sergeikim won by resignation"]

1. d4 {[%clk 0:03:01.9]} 1... Nf6 {[%clk 0:03:00.3]} 2. c4 {[%clk 0:03:02.7]}
2... g6 {[%clk 0:03:01.7]} 3. Nc3 {[%clk 0:03:03.8]} 3... d5 {[%clk 0:03:01.7]}
4. cxd5 {[%clk 0:03:04.3]} 4... Nxd5 {[%clk 0:03:03.2]} 5. e4 {[%clk 0:03:05.3]}
5... Nxc3 {[%clk 0:03:04.5]} 6. bxc3 {[%clk 0:03:06.9]} 6... Bg7 {[%clk
0:03:06]} 7. Bc4 {[%clk 0:03:07.8]} 7... c5 {[%clk 0:03:06.9]} 8. Ne2 {[%clk
0:03:08.9]} 8... Nc6 {[%clk 0:03:07.4]} 9. Be3 {[%clk 0:03:08.9]} 9... O-O
{[%clk 0:03:06.7]} 10. O-O {[%clk 0:03:09.6]} 10... Bg4 {[%clk 0:03:07.7]} 11.
f3 {[%clk 0:03:10]} 11... Na5 {[%clk 0:03:08.9]} 12. Bd3 {[%clk 0:03:10.5]}
12... cxd4 {[%clk 0:03:08.8]} 13. cxd4 {[%clk 0:03:10.9]} 13... Be6 {[%clk
0:03:10.2]} 14. Qd2 {[%clk 0:03:08]} 14... Nc4 {[%clk 0:03:06.7]} 15. Bxc4
{[%clk 0:03:09]} 15... Bxc4 {[%clk 0:03:08.6]} 16. Rfd1 {[%clk 0:03:10]} 16...
e6 {[%clk 0:03:01]} 17. Ng3 {[%clk 0:03:10.7]} 17... b5 {[%clk 0:02:57.9]} 18.
Bh6 {[%clk 0:03:11.1]} 18... Qb6 {[%clk 0:02:51.1]} 19. Bxg7 {[%clk 0:03:10.9]}
19... Kxg7 {[%clk 0:02:53]} 20. Qg5 {[%clk 0:03:11.1]} 20... h6 {[%clk
0:02:28.1]} 21. Nh5+ {[%clk 0:03:09.2]} 21... Kh7 {[%clk 0:02:29]} 22. Nf6+
{[%clk 0:03:08.2]} 22... Kg7 {[%clk 0:02:29.8]} 23. Qe5 {[%clk 0:03:02.5]} 23...
Qd8 {[%clk 0:01:54.3]} 24. Ne8+ {[%clk 0:02:59.2]} 1-0

[Event "*** Titled Tuesday Blitz"]
[Site "Chess.com"]
[Date "2019.02.05"]
[Round "7"]
[White "SimonKnightRivendell"]
[Black "Tiqr777"]
[Result "0-1"]
[WhiteElo "2000"]
[BlackElo "2567"]
[TimeControl "180+2"]
[EndTime "14:35:42 PST"]
[Termination "Tiqr777 won by resignation"]

1. Nf3 {[%clk 0:03:01.9]} 1... g6 {[%clk 0:03:00.4]} 2. g3 {[%clk 0:03:02.7]}
2... Bg7 {[%clk 0:03:01.6]} 3. Bg2 {[%clk 0:03:01.1]} 3... c5 {[%clk 0:03:02.9]}
4. O-O {[%clk 0:03:01.5]} 4... Nc6 {[%clk 0:03:04.2]} 5. c4 {[%clk 0:03:01.5]}
5... d6 {[%clk 0:03:03.9]} 6. Nc3 {[%clk 0:03:01.4]} 6... Nf6 {[%clk 0:03:04.6]}
7. d3 {[%clk 0:03:02.3]} 7... a6 {[%clk 0:03:04.2]} 8. Bg5 {[%clk 0:03:02.7]}
8... Rb8 {[%clk 0:03:04.4]} 9. Qd2 {[%clk 0:02:55.8]} 9... O-O {[%clk
0:03:04.6]} 10. Bh6 {[%clk 0:02:55.7]} 10... b5 {[%clk 0:03:05.4]} 11. Bxg7
{[%clk 0:02:56.5]} 11... Kxg7 {[%clk 0:03:07]} 12. b3 {[%clk 0:02:51.8]} 12...
Bd7 {[%clk 0:03:07]} 13. a4 {[%clk 0:02:44.2]} 13... b4 {[%clk 0:02:54.2]} 14.
Nd1 {[%clk 0:02:36.2]} 14... e5 {[%clk 0:02:54.4]} 15. Ne3 {[%clk 0:02:34.8]}
15... Qc8 {[%clk 0:02:51.1]} 16. Rfd1 {[%clk 0:02:32.1]} 16... Nd4 {[%clk
0:02:46.1]} 17. Nxd4 {[%clk 0:02:31.4]} 17... cxd4 {[%clk 0:02:41.8]} 18. Nc2
{[%clk 0:02:28]} 18... a5 {[%clk 0:02:39.7]} 19. f4 {[%clk 0:02:28.8]} 19... Re8
{[%clk 0:02:36.7]} 20. e4 {[%clk 0:02:27.1]} 20... dxe3 {[%clk 0:02:25.6]} 21.
Nxe3 {[%clk 0:02:27.9]} 21... Qc5 {[%clk 0:02:19]} 22. d4 {[%clk 0:02:25.8]}
22... exd4 {[%clk 0:02:18.2]} 23. Qxd4 {[%clk 0:02:26.1]} 23... Rxe3 {[%clk
0:02:12.8]} 24. Rab1 {[%clk 0:01:48.7]} 24... Rbe8 {[%clk 0:02:09.8]} 25. Rb2
{[%clk 0:01:46.4]} 25... Re1+ {[%clk 0:02:08.6]} 26. Kf2 {[%clk 0:01:47.2]} 0-1

[Event "*** Titled Tuesday Blitz"]
[Site "Chess.com"]
[Date "2019.02.05"]
[Round "7"]
[White "SergioGarciaFuentes"]
[Black "GHANDEEVAM2003"]
[Result "0-1"]
[WhiteElo "1998"]
[BlackElo "2837"]
[TimeControl "180+2"]
[EndTime "14:35:54 PST"]
[Termination "GHANDEEVAM2003 won by resignation"]

1. Nf3 {[%clk 0:03:01.9]} 1... Nf6 {[%clk 0:02:56.1]} 2. g3 {[%clk 0:03:02.5]}
2... g6 {[%clk 0:02:57.9]} 3. b3 {[%clk 0:03:03.2]} 3... Bg7 {[%clk 0:02:59.8]}
4. Bb2 {[%clk 0:03:04.5]} 4... O-O {[%clk 0:03:01.7]} 5. Bg2 {[%clk 0:03:05.5]}
5... d6 {[%clk 0:03:00.8]} 6. d4 {[%clk 0:03:04.9]} 6... e5 {[%clk 0:02:59.9]}
7. dxe5 {[%clk 0:03:05.1]} 7... Nfd7 {[%clk 0:03:00.6]} 8. Nbd2 {[%clk
0:03:01.7]} 8... Nc6 {[%clk 0:02:59.1]} 9. Nc4 {[%clk 0:03:01.4]} 9... dxe5
{[%clk 0:02:54]} 10. Qd5 {[%clk 0:02:51.5]} 10... Re8 {[%clk 0:02:26.8]} 11.
O-O-O {[%clk 0:02:35]} 11... Qe7 {[%clk 0:02:21.4]} 12. Ba3 {[%clk 0:01:57.2]}
12... Nb4 {[%clk 0:02:13.6]} 13. Qd2 {[%clk 0:01:55.8]} 13... a5 {[%clk
0:02:11.3]} 14. c3 {[%clk 0:01:50.3]} 14... b5 {[%clk 0:02:05.1]} 15. Ne3 {[%clk
0:01:35.5]} 15... Nd3+ {[%clk 0:02:03.2]} 16. Qxd3 {[%clk 0:01:23.5]} 16...
Qxa3+ {[%clk 0:02:05.1]} 17. Kb1 {[%clk 0:01:24.2]} 17... e4 {[%clk 0:02:05.3]}
18. Qd5 {[%clk 0:01:13.9]} 18... exf3 {[%clk 0:02:04.9]} 19. Qxa8 {[%clk
0:01:11.2]} 19... Bxc3 {[%clk 0:02:04.3]} 0-1

[Event "*** Titled Tuesday Blitz"]
[Site "Chess.com"]
[Date "2019.02.05"]
[Round "7"]
[White "NoGalloNoParty"]
[Black "Veiso"]
[Result "1-0"]
[WhiteElo "2329"]
[BlackElo "2373"]
[TimeControl "180+2"]
[EndTime "14:36:17 PST"]
[Termination "NoGalloNoParty won by resignation"]

1. d4 {[%clk 0:03:00.6]} 1... c5 {[%clk 0:03:00.4]} 2. d5 {[%clk 0:03:00.5]}
2... g6 {[%clk 0:03:01.7]} 3. Nc3 {[%clk 0:02:58.1]} 3... Bg7 {[%clk 0:03:02.8]}
4. Nf3 {[%clk 0:02:59]} 4... d6 {[%clk 0:03:04.1]} 5. e4 {[%clk 0:03:00.1]} 5...
Nf6 {[%clk 0:03:05.6]} 6. Bb5+ {[%clk 0:03:00.2]} 6... Bd7 {[%clk 0:03:05.7]} 7.
a4 {[%clk 0:03:01.3]} 7... O-O {[%clk 0:03:07.1]} 8. O-O {[%clk 0:03:02]} 8...
Bxb5 {[%clk 0:03:08.6]} 9. axb5 {[%clk 0:03:02.8]} 9... Nbd7 {[%clk 0:03:10.2]}
10. Re1 {[%clk 0:03:01.1]} 10... Nb6 {[%clk 0:03:11.3]} 11. h3 {[%clk 0:02:56]}
11... Ne8 {[%clk 0:03:12]} 12. Bf4 {[%clk 0:02:56.4]} 12... Nc7 {[%clk
0:03:12.8]} 13. Qd3 {[%clk 0:02:33]} 13... Qd7 {[%clk 0:03:13]} 14. e5 {[%clk
0:02:30.1]} 14... c4 {[%clk 0:02:45.8]} 15. Qd4 {[%clk 0:02:29]} 15... Nxb5
{[%clk 0:02:41.7]} 16. Nxb5 {[%clk 0:02:29.1]} 16... Qxb5 {[%clk 0:02:42.8]} 17.
Rad1 {[%clk 0:02:23.5]} 17... Rad8 {[%clk 0:02:35.6]} 18. exd6 {[%clk 0:01:57]}
18... Bxd4 {[%clk 0:02:25.5]} 19. Nxd4 {[%clk 0:01:57]} 19... Qxd5 {[%clk
0:02:03.1]} 20. dxe7 {[%clk 0:01:57.1]} 20... Rfe8 {[%clk 0:02:03.2]} 21. exd8=Q
{[%clk 0:00:57.3]} 21... Rxd8 {[%clk 0:02:05.1]} 22. Kh2 {[%clk 0:00:57.3]}
22... Qf5 {[%clk 0:02:01.1]} 23. Nxf5 {[%clk 0:00:56.9]} 1-0

[Event "*** Titled Tuesday Blitz"]
[Site "Chess.com"]
[Date "2019.02.05"]
[Round "7"]
[White "evgenysharapov"]
[Black "BasilSmash"]
[Result "1-0"]
[WhiteElo "2340"]
[BlackElo "2350"]
[TimeControl "180+2"]
[EndTime "14:36:44 PST"]
[Termination "evgenysharapov won by resignation"]

1. e4 {[%clk 0:03:01.9]} 1... c6 {[%clk 0:03:00.8]} 2. d4 {[%clk 0:03:02]} 2...
d5 {[%clk 0:03:02.7]} 3. Nc3 {[%clk 0:03:02]} 3... dxe4 {[%clk 0:03:03.4]} 4.
Nxe4 {[%clk 0:03:02.9]} 4... Bf5 {[%clk 0:03:04.9]} 5. Ng3 {[%clk 0:03:03.1]}
5... Bg6 {[%clk 0:03:06.1]} 6. h4 {[%clk 0:03:04.1]} 6... h6 {[%clk 0:03:07.2]}
7. Nf3 {[%clk 0:03:04.4]} 7... e6 {[%clk 0:03:08.1]} 8. h5 {[%clk 0:03:05.1]}
8... Bh7 {[%clk 0:03:09.1]} 9. Bd3 {[%clk 0:03:06]} 9... Bxd3 {[%clk 0:03:10.6]}
10. Qxd3 {[%clk 0:03:07]} 10... Nf6 {[%clk 0:03:12.5]} 11. Bd2 {[%clk
0:03:07.6]} 11... Be7 {[%clk 0:03:12.9]} 12. O-O-O {[%clk 0:03:08]} 12... O-O
{[%clk 0:03:14.1]} 13. Nf1 {[%clk 0:03:07.5]} 13... c5 {[%clk 0:03:14.7]} 14. g4
{[%clk 0:03:04.8]} 14... Nxg4 {[%clk 0:03:12.1]} 15. Qe2 {[%clk 0:03:04.9]}
15... Nc6 {[%clk 0:03:09.3]} 16. Rg1 {[%clk 0:03:03.2]} 16... f5 {[%clk
0:03:02.9]} 17. Qxe6+ {[%clk 0:02:52.2]} 17... Kh8 {[%clk 0:02:52.5]} 18. Ne5
{[%clk 0:02:44.4]} 18... Ncxe5 {[%clk 0:01:16.1]} 19. dxe5 {[%clk 0:02:43.6]}
19... Nxf2 {[%clk 0:01:17.3]} 20. Rxg7 {[%clk 0:02:14.6]} 20... Bg5 {[%clk
0:00:36.9]} 21. Qg6 {[%clk 0:02:03.1]} 21... Bxd2+ {[%clk 0:00:32.4]} 22. Rxd2
{[%clk 0:01:59.8]} 1-0

[Event "*** Titled Tuesday Blitz"]
[Site "Chess.com"]
[Date "2019.02.05"]
[Round "7"]
[White "DanielMieles1985"]
[Black "Anar_Aliakbarov"]
[Result "1-0"]
[WhiteElo "2619"]
[BlackElo "2453"]
[TimeControl "180+2"]
[EndTime "14:36:45 PST"]
[Termination "DanielMieles1985 won by resignation"]

1. d4 {[%clk 0:03:01.9]} 1... d5 {[%clk 0:03:00]} 2. c4 {[%clk 0:03:03]} 2... e6
{[%clk 0:02:56.9]} 3. Nc3 {[%clk 0:03:02.8]} 3... Bb4 {[%clk 0:02:56.6]} 4. cxd5
{[%clk 0:02:59.4]} 4... exd5 {[%clk 0:02:52.9]} 5. Nf3 {[%clk 0:03:01]} 5... Nf6
{[%clk 0:02:50.7]} 6. Bg5 {[%clk 0:03:01.4]} 6... Nbd7 {[%clk 0:02:47.5]} 7. Rc1
{[%clk 0:02:58.1]} 7... c5 {[%clk 0:02:48.2]} 8. dxc5 {[%clk 0:02:56.8]} 8...
Qa5 {[%clk 0:02:49.4]} 9. Qd4 {[%clk 0:02:56]} 9... Bxc5 {[%clk 0:02:36.4]} 10.
Qd2 {[%clk 0:02:56.4]} 10... Bb4 {[%clk 0:02:36.6]} 11. a3 {[%clk 0:02:53.3]}
11... Bxc3 {[%clk 0:02:34.9]} 12. Qxc3 {[%clk 0:02:52.9]} 12... Qxc3+ {[%clk
0:02:35]} 13. Rxc3 {[%clk 0:02:53.9]} 13... Ne4 {[%clk 0:02:36]} 14. Rd3 {[%clk
0:02:50.5]} 14... Nxg5 {[%clk 0:02:36.1]} 15. Nxg5 {[%clk 0:02:51.2]} 15... Nf6
{[%clk 0:02:37.5]} 16. e3 {[%clk 0:02:45.4]} 16... Bd7 {[%clk 0:02:33]} 17. Rc3
{[%clk 0:02:40.5]} 17... Rc8 {[%clk 0:02:25.2]} 18. Rxc8+ {[%clk 0:02:40.3]}
18... Bxc8 {[%clk 0:02:26.3]} 19. Bb5+ {[%clk 0:02:41.9]} 19... Ke7 {[%clk
0:02:27.5]} 20. Ke2 {[%clk 0:02:43.5]} 20... Bd7 {[%clk 0:02:26.2]} 21. Bxd7
{[%clk 0:02:43.4]} 21... Nxd7 {[%clk 0:02:28.1]} 22. Rc1 {[%clk 0:02:44.4]}
22... h6 {[%clk 0:02:26.7]} 23. Nh3 {[%clk 0:02:41.2]} 23... Kd6 {[%clk
0:02:27.2]} 24. Nf4 {[%clk 0:02:40.9]} 24... Nb6 {[%clk 0:02:25.2]} 25. Kd3
{[%clk 0:02:36]} 25... Nc4 {[%clk 0:02:17.4]} 26. Rc2 {[%clk 0:02:32]} 26... Rc8
{[%clk 0:02:16.2]} 27. Kd4 {[%clk 0:02:32.6]} 27... Rc5 {[%clk 0:01:48.9]} 28.
e4 {[%clk 0:02:10]} 28... b6 {[%clk 0:01:35.3]} 29. Nxd5 {[%clk 0:02:02.4]}
29... Nxa3 {[%clk 0:01:34.3]} 30. e5+ {[%clk 0:01:57.2]} 30... Kc6 {[%clk
0:01:12.9]} 31. bxa3 {[%clk 0:01:57]} 1-0

[Event "*** Titled Tuesday Blitz"]
[Site "Chess.com"]
[Date "2019.02.05"]
[Round "7"]
[White "jsdbv18"]
[Black "DoHoChess"]
[Result "0-1"]
[WhiteElo "2482"]
[BlackElo "2612"]
[TimeControl "180+2"]
[EndTime "14:36:48 PST"]
[Termination "DoHoChess won by resignation"]

1. e4 {[%clk 0:03:01.9]} 1... e5 {[%clk 0:02:59.2]} 2. Nf3 {[%clk 0:03:03.2]}
2... Nc6 {[%clk 0:03:00.8]} 3. Bc4 {[%clk 0:03:03.2]} 3... Bc5 {[%clk
0:03:01.4]} 4. c3 {[%clk 0:03:03.9]} 4... Nf6 {[%clk 0:03:02.5]} 5. d3 {[%clk
0:03:05.4]} 5... a6 {[%clk 0:03:03.1]} 6. Bb3 {[%clk 0:03:06.5]} 6... Ba7 {[%clk
0:03:04.2]} 7. Nbd2 {[%clk 0:03:08]} 7... d6 {[%clk 0:03:05.6]} 8. Nf1 {[%clk
0:03:09.1]} 8... Be6 {[%clk 0:03:03.2]} 9. Ng3 {[%clk 0:03:06.2]} 9... O-O
{[%clk 0:03:03.1]} 10. O-O {[%clk 0:03:06.1]} 10... Bxb3 {[%clk 0:02:59.7]} 11.
Qxb3 {[%clk 0:03:06.2]} 11... Qd7 {[%clk 0:03:01]} 12. Bg5 {[%clk 0:03:05.5]}
12... Ne8 {[%clk 0:02:56.3]} 13. Nf5 {[%clk 0:03:04.4]} 13... h6 {[%clk
0:02:56.2]} 14. Be3 {[%clk 0:03:04.3]} 14... Nf6 {[%clk 0:02:43.2]} 15. h3
{[%clk 0:03:02.1]} 15... Ne7 {[%clk 0:02:25.9]} 16. Nxe7+ {[%clk 0:02:55.9]}
16... Qxe7 {[%clk 0:02:27.2]} 17. Nh4 {[%clk 0:02:52.9]} 17... b5 {[%clk
0:02:00.7]} 18. Nf5 {[%clk 0:02:52.5]} 18... Qe6 {[%clk 0:02:00.8]} 19. Qd1
{[%clk 0:02:50.9]} 19... Rfd8 {[%clk 0:01:54.6]} 20. a4 {[%clk 0:02:42.8]} 20...
Bxe3 {[%clk 0:01:49.9]} 21. fxe3 {[%clk 0:02:38.6]} 21... d5 {[%clk 0:01:49.6]}
22. exd5 {[%clk 0:02:39.4]} 22... Nxd5 {[%clk 0:01:45.3]} 23. Qf3 {[%clk
0:02:21.4]} 23... Kh7 {[%clk 0:01:36.2]} 24. axb5 {[%clk 0:02:19.6]} 24... axb5
{[%clk 0:01:34.7]} 25. Rxa8 {[%clk 0:01:58]} 25... Rxa8 {[%clk 0:01:35.1]} 26.
c4 {[%clk 0:01:59.4]} 26... bxc4 {[%clk 0:01:30.4]} 27. dxc4 {[%clk 0:02:00.5]}
27... Nb6 {[%clk 0:01:27.9]} 28. c5 {[%clk 0:02:01.9]} 28... Nd5 {[%clk
0:01:26.9]} 29. e4 {[%clk 0:01:52.9]} 29... Nf4 {[%clk 0:01:18.5]} 30. Qc3
{[%clk 0:01:46.6]} 30... Ne2+ {[%clk 0:01:14.2]} 0-1

[Event "*** Titled Tuesday Blitz"]
[Site "Chess.com"]
[Date "2019.02.05"]
[Round "7"]
[White "Satscho"]
[Black "scaryninja"]
[Result "1-0"]
[WhiteElo "2306"]
[BlackElo "2409"]
[TimeControl "180+2"]
[EndTime "14:37:06 PST"]
[Termination "Satscho won by resignation"]

1. e4 {[%clk 0:03:01.9]} 1... c5 {[%clk 0:02:59.7]} 2. Nf3 {[%clk 0:03:02.7]}
2... d6 {[%clk 0:03:00.2]} 3. d4 {[%clk 0:03:03.7]} 3... cxd4 {[%clk 0:03:02.1]}
4. Qxd4 {[%clk 0:03:05.3]} 4... Nc6 {[%clk 0:02:58.3]} 5. Bb5 {[%clk 0:03:05.6]}
5... Bd7 {[%clk 0:02:55.4]} 6. Bxc6 {[%clk 0:03:06.7]} 6... Bxc6 {[%clk
0:02:56.8]} 7. Nc3 {[%clk 0:03:08.1]} 7... e5 {[%clk 0:02:56.6]} 8. Qd3 {[%clk
0:03:08.1]} 8... Nf6 {[%clk 0:02:58.1]} 9. Bg5 {[%clk 0:03:08.5]} 9... Be7
{[%clk 0:02:56]} 10. Bxf6 {[%clk 0:03:09.2]} 10... Bxf6 {[%clk 0:02:55.1]} 11.
O-O-O {[%clk 0:03:10.8]} 11... Be7 {[%clk 0:02:45.1]} 12. Nd2 {[%clk 0:03:04.9]}
12... O-O {[%clk 0:02:42.5]} 13. Nc4 {[%clk 0:03:05.9]} 13... Rc8 {[%clk
0:02:35.5]} 14. Nxd6 {[%clk 0:03:02.2]} 14... Bxd6 {[%clk 0:02:36]} 15. Qxd6
{[%clk 0:03:04.1]} 15... Qg5+ {[%clk 0:02:37.1]} 16. Qd2 {[%clk 0:03:01.9]}
16... Qxg2 {[%clk 0:02:35.1]} 17. Rhg1 {[%clk 0:02:55]} 17... Qxh2 {[%clk
0:02:26.9]} 18. Rg3 {[%clk 0:02:52.4]} 18... g6 {[%clk 0:02:11.6]} 19. Qe3
{[%clk 0:02:44.5]} 19... Rfd8 {[%clk 0:02:02]} 20. Rxd8+ {[%clk 0:02:32.8]}
20... Rxd8 {[%clk 0:02:01.6]} 21. b3 {[%clk 0:02:34.7]} 21... Qh1+ {[%clk
0:01:52.8]} 22. Kb2 {[%clk 0:02:35.4]} 22... a5 {[%clk 0:01:18.2]} 23. Rh3
{[%clk 0:02:34]} 23... Qf1 {[%clk 0:01:04]} 24. Qh6 {[%clk 0:02:33]} 24... Qxf2
{[%clk 0:00:31.3]} 25. Qxh7+ {[%clk 0:02:33.4]} 25... Kf8 {[%clk 0:00:32.5]} 26.
Qh8+ {[%clk 0:02:35.1]} 26... Ke7 {[%clk 0:00:32.9]} 27. Qxe5+ {[%clk
0:02:36.8]} 27... Kd7 {[%clk 0:00:31]} 28. Qxa5 {[%clk 0:02:28.5]} 28... Rc8
{[%clk 0:00:12.2]} 29. Rd3+ {[%clk 0:02:25.2]} 29... Ke8 {[%clk 0:00:13]} 30.
Qe5+ {[%clk 0:02:26.5]} 30... Kf8 {[%clk 0:00:12.2]} 31. Qh8+ {[%clk 0:02:27.5]}
1-0

[Event "*** Titled Tuesday Blitz"]
[Site "Chess.com"]
[Date "2019.02.05"]
[Round "7"]
[White "mousavian_hamed"]
[Black "StanislavNovikov"]
[Result "0-1"]
[WhiteElo "2535"]
[BlackElo "2680"]
[TimeControl "180+2"]
[EndTime "14:37:23 PST"]
[Termination "StanislavNovikov won by resignation"]

1. e4 {[%clk 0:03:01.9]} 1... g6 {[%clk 0:03:00.6]} 2. d4 {[%clk 0:03:01.1]}
2... Bg7 {[%clk 0:03:01.4]} 3. Nc3 {[%clk 0:03:03]} 3... c6 {[%clk 0:03:02.7]}
4. Bc4 {[%clk 0:03:00.5]} 4... b5 {[%clk 0:03:03.5]} 5. Bb3 {[%clk 0:03:00]}
5... a5 {[%clk 0:03:04.8]} 6. a3 {[%clk 0:03:00.7]} 6... Ba6 {[%clk 0:03:02.9]}
7. Qf3 {[%clk 0:03:00]} 7... e6 {[%clk 0:02:59.7]} 8. e5 {[%clk 0:02:58.5]} 8...
d5 {[%clk 0:02:50.7]} 9. exd6 {[%clk 0:02:58.3]} 9... Qxd6 {[%clk 0:02:51.3]}
10. Nge2 {[%clk 0:02:58.2]} 10... Nf6 {[%clk 0:02:45.8]} 11. Bf4 {[%clk
0:02:57.9]} 11... Qd8 {[%clk 0:02:42.9]} 12. Be5 {[%clk 0:02:52.1]} 12... O-O
{[%clk 0:02:35.4]} 13. h4 {[%clk 0:02:51.4]} 13... Nbd7 {[%clk 0:02:32.5]} 14.
h5 {[%clk 0:02:49.3]} 14... b4 {[%clk 0:02:16.6]} 15. hxg6 {[%clk 0:02:44.3]}
15... hxg6 {[%clk 0:02:14.5]} 16. Ne4 {[%clk 0:02:36.1]} 16... Bxe2 {[%clk
0:01:47]} 17. Qxe2 {[%clk 0:02:31.1]} 17... Nxe5 {[%clk 0:01:44.6]} 18. dxe5
{[%clk 0:02:31.3]} 18... Nxe4 {[%clk 0:01:45.8]} 19. Qxe4 {[%clk 0:02:31.8]}
19... a4 {[%clk 0:01:39.3]} 20. Bc4 {[%clk 0:02:29.9]} 20... bxa3 {[%clk
0:01:35.8]} 21. Rxa3 {[%clk 0:02:27.9]} 21... Qa5+ {[%clk 0:01:33.2]} 22. Kf1
{[%clk 0:02:22.2]} 22... Qxe5 {[%clk 0:01:31.1]} 23. Qh4 {[%clk 0:02:18.7]}
23... Rfd8 {[%clk 0:01:25.2]} 24. Rd3 {[%clk 0:02:00.8]} 24... Rxd3 {[%clk
0:01:20.9]} 25. cxd3 {[%clk 0:02:01]} 25... Qxb2 {[%clk 0:01:17.7]} 26. g3
{[%clk 0:01:53.8]} 26... a3 {[%clk 0:01:16]} 27. Kg2 {[%clk 0:01:45.8]} 27... a2
{[%clk 0:01:16.4]} 28. Bxe6 {[%clk 0:01:29.7]} 28... fxe6 {[%clk 0:01:09.6]} 29.
Qe7 {[%clk 0:01:29.4]} 29... Qf6 {[%clk 0:01:00.6]} 0-1

[Event "*** Titled Tuesday Blitz"]
[Site "Chess.com"]
[Date "2019.02.05"]
[Round "7"]
[White "AndrBaryshpolets"]
[Black "Zaven_ChessMood"]
[Result "0-1"]
[WhiteElo "2623"]
[BlackElo "2867"]
[TimeControl "180+2"]
[EndTime "14:37:33 PST"]
[Termination "Zaven_ChessMood won by resignation"]

1. d4 {[%clk 0:03:01.9]} 1... Nf6 {[%clk 0:02:58.5]} 2. c4 {[%clk 0:03:03.1]}
2... g6 {[%clk 0:02:59.3]} 3. Nc3 {[%clk 0:03:03.9]} 3... Bg7 {[%clk 0:02:58.4]}
4. g3 {[%clk 0:03:03.7]} 4... O-O {[%clk 0:02:58.4]} 5. Bg2 {[%clk 0:03:05.1]}
5... d6 {[%clk 0:02:57.8]} 6. Nf3 {[%clk 0:03:06.4]} 6... Nbd7 {[%clk
0:02:57.3]} 7. O-O {[%clk 0:03:07.4]} 7... e5 {[%clk 0:02:56.9]} 8. e4 {[%clk
0:03:09.1]} 8... Re8 {[%clk 0:02:55.9]} 9. h3 {[%clk 0:03:00.1]} 9... exd4
{[%clk 0:02:53.1]} 10. Nxd4 {[%clk 0:03:02]} 10... Nc5 {[%clk 0:02:50.9]} 11.
Re1 {[%clk 0:03:02.2]} 11... Bd7 {[%clk 0:02:44.6]} 12. b4 {[%clk 0:02:47.9]}
12... Ne6 {[%clk 0:02:41.7]} 13. Nb3 {[%clk 0:02:48.9]} 13... h5 {[%clk
0:02:37.2]} 14. Rb1 {[%clk 0:02:33.4]} 14... h4 {[%clk 0:02:35.4]} 15. g4 {[%clk
0:02:01.3]} 15... Nxg4 {[%clk 0:02:35.8]} 16. Nd5 {[%clk 0:01:52.1]} 16... Nf6
{[%clk 0:02:36]} 17. f4 {[%clk 0:01:50.2]} 17... Ba4 {[%clk 0:02:31]} 18. Be3
{[%clk 0:01:39]} 18... c6 {[%clk 0:02:21.6]} 19. Nc3 {[%clk 0:01:30]} 19... Bxb3
{[%clk 0:02:20.2]} 20. Rxb3 {[%clk 0:01:31.9]} 20... Nh5 {[%clk 0:02:17.3]} 21.
Qd2 {[%clk 0:01:19]} 21... a5 {[%clk 0:02:13.4]} 22. bxa5 {[%clk 0:01:12.6]}
22... Qxa5 {[%clk 0:02:10.8]} 23. Bb6 {[%clk 0:00:52.8]} 23... Qa6 {[%clk
0:02:06]} 24. f5 {[%clk 0:00:47]} 24... Nef4 {[%clk 0:02:03.8]} 25. Bf1 {[%clk
0:00:42.9]} 25... c5 {[%clk 0:01:56.6]} 26. Qxd6 {[%clk 0:00:29]} 26... Bd4+
{[%clk 0:01:50]} 27. Kh2 {[%clk 0:00:29.8]} 27... Be5 {[%clk 0:01:47.9]} 28. Qd1
{[%clk 0:00:20.1]} 28... Ne2+ {[%clk 0:01:44.9]} 0-1

[Event "*** Titled Tuesday Blitz"]
[Site "Chess.com"]
[Date "2019.02.05"]
[Round "7"]
[White "NateSolon"]
[Black "IMRosen"]
[Result "1-0"]
[WhiteElo "2546"]
[BlackElo "2508"]
[TimeControl "180+2"]
[EndTime "14:37:37 PST"]
[Termination "NateSolon won by checkmate"]

1. d4 {[%clk 0:03:01.9]} 1... Nf6 {[%clk 0:02:59.4]} 2. Bf4 {[%clk 0:03:02.3]}
2... d5 {[%clk 0:02:59.1]} 3. e3 {[%clk 0:03:03.3]} 3... c5 {[%clk 0:03:00]} 4.
Nc3 {[%clk 0:03:04.4]} 4... Nc6 {[%clk 0:03:01.7]} 5. Nb5 {[%clk 0:03:05.4]}
5... e5 {[%clk 0:02:56.1]} 6. dxe5 {[%clk 0:03:05]} 6... Ne4 {[%clk 0:02:03.6]}
7. Qxd5 {[%clk 0:03:04.8]} 7... Qxd5 {[%clk 0:01:46.7]} 8. Nc7+ {[%clk
0:03:05.5]} 8... Kd8 {[%clk 0:01:48.4]} 9. Nxd5 {[%clk 0:03:07.4]} 9... Be6
{[%clk 0:01:50]} 10. Rd1 {[%clk 0:03:00.1]} 10... Kc8 {[%clk 0:01:46.6]} 11. f3
{[%clk 0:02:53.1]} 11... g5 {[%clk 0:01:47.7]} 12. fxe4 {[%clk 0:02:46.7]} 12...
gxf4 {[%clk 0:01:49.4]} 13. exf4 {[%clk 0:02:48]} 13... Nd4 {[%clk 0:01:51]} 14.
c3 {[%clk 0:02:37.9]} 14... Nc6 {[%clk 0:01:40.4]} 15. Nf3 {[%clk 0:02:38]}
15... Bh6 {[%clk 0:01:39.9]} 16. f5 {[%clk 0:02:31.2]} 16... Bd7 {[%clk
0:01:35.7]} 17. Nf6 {[%clk 0:02:23.2]} 17... Nb8 {[%clk 0:01:31.6]} 18. Bc4
{[%clk 0:02:18.7]} 18... Rf8 {[%clk 0:01:06.6]} 19. Nxh7 {[%clk 0:02:14.6]}
19... Rg8 {[%clk 0:01:08.2]} 20. Kf2 {[%clk 0:02:06.4]} 20... Rg7 {[%clk
0:01:02.6]} 21. Nf6 {[%clk 0:02:05.2]} 21... Bc6 {[%clk 0:01:01.3]} 22. Bd5
{[%clk 0:01:56.7]} 22... Kc7 {[%clk 0:00:58.7]} 23. Bxc6 {[%clk 0:01:54.5]}
23... Nxc6 {[%clk 0:01:00.6]} 24. Rd7+ {[%clk 0:01:54.8]} 24... Kb6 {[%clk
0:01:01.7]} 25. Nd5+ {[%clk 0:01:52.2]} 25... Ka6 {[%clk 0:01:00.4]} 26. Nc7+
{[%clk 0:01:53]} 26... Ka5 {[%clk 0:01:01.1]} 27. Nxa8 {[%clk 0:01:54.1]} 27...
b5 {[%clk 0:00:57.3]} 28. Rd6 {[%clk 0:01:52.1]} 28... Nb8 {[%clk 0:00:54.6]}
29. Rxh6 {[%clk 0:01:51.9]} 29... b4 {[%clk 0:00:52.8]} 30. Rd1 {[%clk
0:01:49.2]} 30... c4 {[%clk 0:00:51.3]} 31. cxb4+ {[%clk 0:01:47.2]} 31... Ka4
{[%clk 0:00:51.6]} 32. Rd8 {[%clk 0:01:47]} 32... f6 {[%clk 0:00:50.9]} 33. Rxb8
{[%clk 0:01:44.2]} 33... a5 {[%clk 0:00:48.7]} 34. exf6 {[%clk 0:01:42.1]} 34...
Rd7 {[%clk 0:00:47.4]} 35. Nb6+ {[%clk 0:01:42.2]} 35... Kxb4 {[%clk 0:00:46.6]}
36. Nxd7+ {[%clk 0:01:42.9]} 36... Ka4 {[%clk 0:00:48.3]} 37. Nc5# {[%clk
0:01:43.1]} 1-0